[Event "Titled Tuesday Blitz September 27 Early 2022"]
[White "Pham, Khoi"]
[Black "Adewumi, Tanitoluwa"]
[WhiteFideId "1054988"]
[BlackFideId "30966396"]
[WhiteElo "2441"]
[BlackElo "2590"]
[Result "1-0"]
[Round "05"]
[TimeControl "180+1"]
[Date "2022.09.27"]
[WhiteClock "0:01:31"]
[BlackClock "0:00:01"]

1. e4 {[%clk 0:03:00]}  c5 {[%clk 0:01:37]} 2. Nf3 {[%clk 0:02:59]}  e6 {[%clk 0:01:37]} 3. c3 {[%clk 0:02:59]}  Nf6 {[%clk 0:01:35]} 4. e5 {[%clk 0:03:00]}  Nd5 {[%clk 0:01:34]} 5. d4 {[%clk 0:03:01]}  cxd4 {[%clk 0:01:21]} 6. cxd4 {[%clk 0:03:02]}  b6 {[%clk 0:01:21]} 7. Nc3 {[%clk 0:02:57]}  Nxc3 {[%clk 0:01:16]} 8. bxc3 {[%clk 0:02:58]}  Ba6 {[%clk 0:01:15]} 9. Bxa6 {[%clk 0:02:44]}  Nxa6 {[%clk 0:01:08]} 10. O-O {[%clk 0:02:45]}  Qc8 {[%clk 0:00:58]} 11. Qd3 {[%clk 0:02:43]}  Be7 {[%clk 0:00:51]} 12. Bg5 {[%clk 0:02:35]}  f6 {[%clk 0:00:36]} 13. exf6 {[%clk 0:02:32]}  gxf6 {[%clk 0:00:36]} 14. Bh6 {[%clk 0:02:32]}  Kf7 {[%clk 0:00:22]} 15. c4 {[%clk 0:02:29]}  Nb4 {[%clk 0:00:21]} 16. Qb3 {[%clk 0:02:24]}  d5 {[%clk 0:00:17]} 17. Rac1 {[%clk 0:02:21]}  Qd7 {[%clk 0:00:13]} 18. Rfe1 {[%clk 0:02:15]}  dxc4 {[%clk 0:00:12]} 19. Rxc4 {[%clk 0:02:11]}  Nd5 {[%clk 0:00:10]} 20. Nh4 {[%clk 0:02:07]}  Rhg8 {[%clk 0:00:07]} 21. Qf3 {[%clk 0:02:06]}  Rg6 {[%clk 0:00:02]} 22. Nxg6 {[%clk 0:02:05]}  hxg6 {[%clk 0:00:03]} 23. h4 {[%clk 0:02:01]}  b5 {[%clk 0:00:03]} 24. Rc2 {[%clk 0:02:00]}  Rh8 {[%clk 0:00:02]} 25. Bg5 {[%clk 0:01:58]}  Kg7 {[%clk 0:00:02]} 26. Bc1 {[%clk 0:01:51]}  Rxh4 {[%clk 0:00:01]} 27. Rce2 {[%clk 0:01:52]}  Kf7 {[%clk 0:00:01]} 28. Qg3 {[%clk 0:01:37]}  g5 {[%clk 0:00:01]} 29. Qf3 {[%clk 0:01:31]} 1-0


[Site "https://www.chess.com"]

[Event "Titled Tuesday Blitz September 27 Early 2022"]
[White "Piesik, Piotr"]
[Black "Bilan, Danila"]
[WhiteFideId "1136194"]
[BlackFideId "24161918"]
[WhiteElo "2221"]
[BlackElo "2164"]
[Result "0-1"]
[Round "05"]
[TimeControl "180+1"]
[Date "2022.09.27"]
[WhiteClock "0:00:12"]
[BlackClock "0:00:31"]

1. Nf3 {[%clk 0:01:33]}  d5 {[%clk 0:02:59]} 2. g3 {[%clk 0:01:34]}  Nf6 {[%clk 0:02:59]} 3. Bg2 {[%clk 0:01:35]}  c5 {[%clk 0:02:59]} 4. O-O {[%clk 0:01:35]}  Nc6 {[%clk 0:03:00]} 5. d3 {[%clk 0:01:36]}  Bg4 {[%clk 0:02:58]} 6. Nbd2 {[%clk 0:01:37]}  e6 {[%clk 0:02:57]} 7. e4 {[%clk 0:01:37]}  Be7 {[%clk 0:02:55]} 8. h3 {[%clk 0:01:38]}  Bh5 {[%clk 0:02:56]} 9. c3 {[%clk 0:01:37]}  O-O {[%clk 0:02:55]} 10. Qc2 {[%clk 0:01:37]}  Qc7 {[%clk 0:02:52]} 11. Re1 {[%clk 0:01:37]}  Rad8 {[%clk 0:02:50]} 12. Nf1 {[%clk 0:01:37]}  Rfe8 {[%clk 0:02:31]} 13. Bf4 {[%clk 0:01:35]}  Qb6 {[%clk 0:02:24]} 14. e5 {[%clk 0:01:35]}  Nd7 {[%clk 0:02:18]} 15. g4 {[%clk 0:01:35]}  Bg6 {[%clk 0:02:18]} 16. Ng3 {[%clk 0:01:34]}  c4 {[%clk 0:02:14]} 17. Qd2 {[%clk 0:01:30]}  Bxd3 {[%clk 0:02:04]} 18. Bg5 {[%clk 0:01:28]}  Bxg5 {[%clk 0:01:55]} 19. Qxg5 {[%clk 0:01:29]}  Qxb2 {[%clk 0:01:43]} 20. h4 {[%clk 0:01:24]}  Qxc3 {[%clk 0:01:31]} 21. Nh5 {[%clk 0:01:24]}  Bg6 {[%clk 0:01:26]} 22. Nxg7 {[%clk 0:01:21]}  Kxg7 {[%clk 0:01:23]} 23. h5 {[%clk 0:01:21]}  Qa3 {[%clk 0:01:12]} 24. Re3 {[%clk 0:01:08]}  Qe7 {[%clk 0:01:08]} 25. Qf4 {[%clk 0:01:05]}  Nc5 {[%clk 0:00:55]} 26. hxg6 {[%clk 0:01:03]}  hxg6 {[%clk 0:00:56]} 27. Bf1 {[%clk 0:00:56]}  d4 {[%clk 0:00:49]} 28. Ra3 {[%clk 0:00:52]}  b5 {[%clk 0:00:47]} 29. Ng5 {[%clk 0:00:43]}  d3 {[%clk 0:00:44]} 30. Bg2 {[%clk 0:00:40]}  Nd4 {[%clk 0:00:41]} 31. Kf1 {[%clk 0:00:32]}  Nc2 {[%clk 0:00:37]} 32. Rxa7 {[%clk 0:00:15]}  Qxa7 {[%clk 0:00:35]} 33. Qf6+ {[%clk 0:00:15]}  Kg8 {[%clk 0:00:35]} 34. Bc6 {[%clk 0:00:13]}  Qe7 {[%clk 0:00:32]} 35. Bxe8 {[%clk 0:00:12]}  Qxf6 {[%clk 0:00:31]} 36. exf6 {[%clk 0:00:12]}  Rxe8 {[%clk 0:00:31]} 0-1


[Site "https://www.chess.com"]

[Event "Titled Tuesday Blitz September 27 Early 2022"]
[White "Pinero Rodriguez, Carlos Jose"]
[Black "Schill, William"]
[WhiteFideId "3901726"]
[BlackFideId "2016710"]
[WhiteElo "2053"]
[BlackElo "1935"]
[Result "0-1"]
[Round "05"]
[TimeControl "180+1"]
[Date "2022.09.27"]
[WhiteClock "0:00:02"]
[BlackClock "0:00:15"]

1. e4 {[%clk 0:02:50]}  c5 {[%clk 0:02:59]} 2. Nf3 {[%clk 0:02:49]}  Nc6 {[%clk 0:02:59]} 3. Bb5 {[%clk 0:02:45]}  g6 {[%clk 0:02:51]} 4. O-O {[%clk 0:02:45]}  Bg7 {[%clk 0:02:51]} 5. c3 {[%clk 0:02:44]}  Nf6 {[%clk 0:02:46]} 6. d4 {[%clk 0:02:42]}  cxd4 {[%clk 0:02:36]} 7. cxd4 {[%clk 0:02:42]}  d5 {[%clk 0:02:23]} 8. e5 {[%clk 0:02:40]}  Ne4 {[%clk 0:02:23]} 9. Nc3 {[%clk 0:02:34]}  Nxc3 {[%clk 0:02:20]} 10. bxc3 {[%clk 0:02:35]}  Bg4 {[%clk 0:01:49]} 11. h3 {[%clk 0:02:33]}  Bxf3 {[%clk 0:01:46]} 12. Qxf3 {[%clk 0:02:34]}  O-O {[%clk 0:01:46]} 13. Rb1 {[%clk 0:02:21]}  Na5 {[%clk 0:01:32]} 14. Ba3 {[%clk 0:02:19]}  Rc8 {[%clk 0:01:25]} 15. Rfe1 {[%clk 0:02:14]}  Rc7 {[%clk 0:00:58]} 16. Bb4 {[%clk 0:02:01]}  Nc4 {[%clk 0:00:55]} 17. Qe2 {[%clk 0:01:48]}  b6 {[%clk 0:00:50]} 18. e6 {[%clk 0:01:37]}  f6 {[%clk 0:00:48]} 19. Ba6 {[%clk 0:01:34]}  Bh6 {[%clk 0:00:34]} 20. a4 {[%clk 0:01:29]}  Bf4 {[%clk 0:00:28]} 21. Qf3 {[%clk 0:01:12]}  Bh6 {[%clk 0:00:18]} 22. a5 {[%clk 0:00:23]}  Nd2 {[%clk 0:00:17]} 23. Qd3 {[%clk 0:00:08]}  Nxb1 {[%clk 0:00:17]} 24. Rxb1 {[%clk 0:00:04]}  Bf4 {[%clk 0:00:16]} 25. axb6 {[%clk 0:00:02]}  axb6 {[%clk 0:00:15]} 0-1


[Site "https://www.chess.com"]

[Event "Titled Tuesday Blitz September 27 Early 2022"]
[White "Pinheiro, Iung Alicio de O."]
[Black "Baskakov, Egor"]
[WhiteFideId "2104350"]
[BlackFideId "24197866"]
[WhiteElo "2283"]
[BlackElo "2211"]
[Result "0-1"]
[Round "05"]
[TimeControl "180+1"]
[Date "2022.09.27"]
[WhiteClock "0:00:01"]
[BlackClock "0:00:06"]

1. e4 {[%clk 0:02:52]}  c5 {[%clk 0:02:59]} 2. Nf3 {[%clk 0:02:52]}  Nf6 {[%clk 0:02:59]} 3. e5 {[%clk 0:02:50]}  Nd5 {[%clk 0:02:59]} 4. Nc3 {[%clk 0:02:51]}  e6 {[%clk 0:02:59]} 5. Bc4 {[%clk 0:02:45]}  Nb6 {[%clk 0:02:59]} 6. d3 {[%clk 0:02:44]}  Nc6 {[%clk 0:02:57]} 7. Bf4 {[%clk 0:02:43]}  d5 {[%clk 0:02:57]} 8. Bb5 {[%clk 0:02:36]}  Bd7 {[%clk 0:02:56]} 9. h4 {[%clk 0:02:35]}  h6 {[%clk 0:02:54]} 10. h5 {[%clk 0:02:33]}  Nd4 {[%clk 0:02:50]} 11. a4 {[%clk 0:02:22]}  Bxb5 {[%clk 0:02:37]} 12. Nxb5 {[%clk 0:02:12]}  Nxb5 {[%clk 0:02:33]} 13. axb5 {[%clk 0:02:11]}  Qd7 {[%clk 0:02:31]} 14. Ra5 {[%clk 0:01:59]}  Be7 {[%clk 0:02:27]} 15. Rh3 {[%clk 0:01:57]}  a6 {[%clk 0:02:07]} 16. Qa1 {[%clk 0:01:52]}  O-O {[%clk 0:02:05]} 17. bxa6 {[%clk 0:01:46]}  Rxa6 {[%clk 0:01:53]} 18. Rxa6 {[%clk 0:01:45]}  bxa6 {[%clk 0:01:54]} 19. Qxa6 {[%clk 0:01:42]}  Qc6 {[%clk 0:01:55]} 20. Qa1 {[%clk 0:01:31]}  Ra8 {[%clk 0:01:52]} 21. Qc1 {[%clk 0:01:31]}  Bf8 {[%clk 0:01:52]} 22. Rg3 {[%clk 0:01:30]}  Kh8 {[%clk 0:01:52]} 23. Nh2 {[%clk 0:01:16]}  Ra4 {[%clk 0:01:42]} 24. Ng4 {[%clk 0:00:58]}  Qa8 {[%clk 0:01:41]} 25. Ke2 {[%clk 0:00:57]}  Ra1 {[%clk 0:00:53]} 26. Qd2 {[%clk 0:00:49]}  Rh1 {[%clk 0:00:53]} 27. Bxh6 {[%clk 0:00:31]}  Qa1 {[%clk 0:00:52]} 28. Bf4 {[%clk 0:00:15]}  Qf1+ {[%clk 0:00:47]} 29. Kf3 {[%clk 0:00:15]}  Rxh5 {[%clk 0:00:45]} 30. c3 {[%clk 0:00:13]}  d4 {[%clk 0:00:42]} 31. c4 {[%clk 0:00:12]}  Be7 {[%clk 0:00:38]} 32. Qe2 {[%clk 0:00:12]}  Qh1 {[%clk 0:00:31]} 33. Qe4 {[%clk 0:00:11]}  g5 {[%clk 0:00:22]} 34. Bd2 {[%clk 0:00:11]}  Qd1+ {[%clk 0:00:17]} 35. Qe2 {[%clk 0:00:10]}  Qb3 {[%clk 0:00:17]} 36. Qe4 {[%clk 0:00:07]}  Nxc4 {[%clk 0:00:16]} 37. Bc1 {[%clk 0:00:04]}  Qd1+ {[%clk 0:00:16]} 38. Qe2 {[%clk 0:00:04]}  Qxc1 {[%clk 0:00:16]} 39. dxc4 {[%clk 0:00:05]}  Qb1 {[%clk 0:00:17]} 40. Qe4 {[%clk 0:00:03]}  Qd1+ {[%clk 0:00:14]} 41. Qe2 {[%clk 0:00:04]}  Qb3+ {[%clk 0:00:14]} 42. Ke4 {[%clk 0:00:03]}  Qb7+ {[%clk 0:00:14]} 43. Kd3 {[%clk 0:00:03]}  Kg7 {[%clk 0:00:13]} 44. Nf6 {[%clk 0:00:03]}  Rh8 {[%clk 0:00:09]} 45. Rxg5+ {[%clk 0:00:02]}  Kf8 {[%clk 0:00:09]} 46. Qg4 {[%clk 0:00:02]}  Bxf6 {[%clk 0:00:09]} 47. exf6 {[%clk 0:00:01]}  Qb3+ {[%clk 0:00:09]} 48. Ke4 {[%clk 0:00:02]}  Qc2+ {[%clk 0:00:09]} 49. Ke5 {[%clk 0:00:01]}  Qxc4 {[%clk 0:00:06]} 0-1


[Site "https://www.chess.com"]

[Event "Titled Tuesday Blitz September 27 Early 2022"]
[White "Priasmoro, Novendra"]
[Black "Lewtak, Damian"]
[WhiteFideId "7105029"]
[BlackFideId "1141724"]
[WhiteElo "2754"]
[BlackElo "2594"]
[Result "0-1"]
[Round "05"]
[TimeControl "180+1"]
[Date "2022.09.27"]
[WhiteClock "0:00:02"]
[BlackClock "0:00:58"]

1. e4 {[%clk 0:03:00]}  c5 {[%clk 0:02:56]} 2. Nf3 {[%clk 0:03:00]}  d6 {[%clk 0:02:55]} 3. d4 {[%clk 0:03:01]}  cxd4 {[%clk 0:02:55]} 4. Nxd4 {[%clk 0:03:01]}  Nf6 {[%clk 0:02:56]} 5. Nc3 {[%clk 0:03:02]}  Nc6 {[%clk 0:02:50]} 6. Bg5 {[%clk 0:03:02]}  e6 {[%clk 0:02:49]} 7. Qd2 {[%clk 0:03:02]}  a6 {[%clk 0:02:49]} 8. O-O-O {[%clk 0:03:02]}  Bd7 {[%clk 0:02:49]} 9. f4 {[%clk 0:02:55]}  b5 {[%clk 0:02:48]} 10. Bxf6 {[%clk 0:02:45]}  gxf6 {[%clk 0:02:47]} 11. Nxc6 {[%clk 0:02:40]}  Bxc6 {[%clk 0:02:47]} 12. Bd3 {[%clk 0:02:38]}  Qb6 {[%clk 0:02:35]} 13. Kb1 {[%clk 0:02:28]}  b4 {[%clk 0:02:29]} 14. Ne2 {[%clk 0:02:27]}  Qc5 {[%clk 0:02:27]} 15. f5 {[%clk 0:02:02]}  e5 {[%clk 0:02:26]} 16. Ng3 {[%clk 0:02:01]}  h5 {[%clk 0:02:25]} 17. h4 {[%clk 0:02:01]}  a5 {[%clk 0:02:11]} 18. Qe2 {[%clk 0:02:00]}  a4 {[%clk 0:02:11]} 19. Bc4 {[%clk 0:01:55]}  Ke7 {[%clk 0:02:11]} 20. b3 {[%clk 0:01:48]}  Bh6 {[%clk 0:01:54]} 21. Nxh5 {[%clk 0:01:31]}  axb3 {[%clk 0:01:54]} 22. cxb3 {[%clk 0:01:26]}  Be3 {[%clk 0:01:40]} 23. Bd5 {[%clk 0:01:25]}  Bxd5 {[%clk 0:01:22]} 24. Rxd5 {[%clk 0:01:25]}  Qa7 {[%clk 0:01:21]} 25. g4 {[%clk 0:00:54]}  Bd4 {[%clk 0:01:16]} 26. Rd1 {[%clk 0:00:53]}  Qa3 {[%clk 0:01:06]} 27. Rb5 {[%clk 0:00:28]}  Rhc8 {[%clk 0:01:02]} 28. Rb7+ {[%clk 0:00:28]}  Kf8 {[%clk 0:01:01]} 29. Qd3 {[%clk 0:00:02]}  Qb2# {[%clk 0:00:58]} 0-1


[Site "https://www.chess.com"]

[Event "Titled Tuesday Blitz September 27 Early 2022"]
[White "Raja Rithvik R"]
[Black "Diaz Perez, Michel Alejandro"]
[WhiteFideId "35007394"]
[BlackFideId "3517179"]
[WhiteElo "2255"]
[BlackElo "2313"]
[Result "1-0"]
[Round "05"]
[TimeControl "180+1"]
[Date "2022.09.27"]
[WhiteClock "0:02:11"]
[BlackClock "0:00:31"]

1. c4 {[%clk 0:03:00]}  Nf6 {[%clk 0:02:57]} 2. Nc3 {[%clk 0:03:01]}  d6 {[%clk 0:02:55]} 3. d4 {[%clk 0:03:00]}  Nbd7 {[%clk 0:02:55]} 4. Nf3 {[%clk 0:03:00]}  e5 {[%clk 0:02:56]} 5. g3 {[%clk 0:03:00]}  Be7 {[%clk 0:02:55]} 6. Bg2 {[%clk 0:03:00]}  O-O {[%clk 0:02:55]} 7. O-O {[%clk 0:03:01]}  c6 {[%clk 0:02:56]} 8. e4 {[%clk 0:03:01]}  Re8 {[%clk 0:02:55]} 9. h3 {[%clk 0:03:00]}  Bf8 {[%clk 0:02:55]} 10. Be3 {[%clk 0:03:00]}  a6 {[%clk 0:02:53]} 11. a4 {[%clk 0:03:00]}  a5 {[%clk 0:02:53]} 12. Qc2 {[%clk 0:03:00]}  exd4 {[%clk 0:02:51]} 13. Nxd4 {[%clk 0:03:01]}  Nc5 {[%clk 0:02:51]} 14. Rad1 {[%clk 0:03:01]}  Qc7 {[%clk 0:02:49]} 15. Rfe1 {[%clk 0:03:01]}  g6 {[%clk 0:02:45]} 16. f4 {[%clk 0:03:01]}  Bg7 {[%clk 0:02:45]} 17. Ndb5 {[%clk 0:03:01]}  cxb5 {[%clk 0:02:35]} 18. Nxb5 {[%clk 0:03:02]}  Qe7 {[%clk 0:02:15]} 19. Nxd6 {[%clk 0:03:02]}  Na6 {[%clk 0:02:12]} 20. Nxe8 {[%clk 0:02:54]}  Qxe8 {[%clk 0:02:08]} 21. e5 {[%clk 0:02:53]}  Bf5 {[%clk 0:02:00]} 22. Qb3 {[%clk 0:02:40]}  Nd7 {[%clk 0:01:36]} 23. Qxb7 {[%clk 0:02:32]}  Rb8 {[%clk 0:01:34]} 24. Qxa6 {[%clk 0:02:31]}  Rxb2 {[%clk 0:01:35]} 25. Qa8 {[%clk 0:02:22]}  Qxa8 {[%clk 0:01:30]} 26. Bxa8 {[%clk 0:02:23]}  Bxh3 {[%clk 0:01:31]} 27. Bc6 {[%clk 0:02:23]}  Nf8 {[%clk 0:01:26]} 28. c5 {[%clk 0:02:22]}  Ne6 {[%clk 0:01:22]} 29. Bd7 {[%clk 0:02:18]}  Rg2+ {[%clk 0:01:13]} 30. Kh1 {[%clk 0:02:19]}  Rxg3 {[%clk 0:01:04]} 31. c6 {[%clk 0:02:18]}  Bg4 {[%clk 0:01:03]} 32. Bxe6 {[%clk 0:02:11]}  Bxd1 {[%clk 0:00:31]} 33. Rxd1 {[%clk 0:02:11]} 1-0


[Site "https://www.chess.com"]

[Event "Titled Tuesday Blitz September 27 Early 2022"]
[White "Rama, Tejas"]
[Black "Aqib Javaid Butt"]
[WhiteFideId "30907381"]
[BlackFideId "7801262"]
[WhiteElo "1513"]
[BlackElo "1634"]
[Result "1-0"]
[Round "05"]
[TimeControl "180+1"]
[Date "2022.09.27"]
[WhiteClock "0:00:05"]
[BlackClock "0:00:04"]

1. d4 {[%clk 0:03:00]}  Nf6 {[%clk 0:02:56]} 2. c4 {[%clk 0:03:00]}  b6 {[%clk 0:02:57]} 3. Nc3 {[%clk 0:02:56]}  Bb7 {[%clk 0:02:57]} 4. a3 {[%clk 0:02:56]}  e6 {[%clk 0:02:57]} 5. d5 {[%clk 0:02:56]}  exd5 {[%clk 0:02:50]} 6. cxd5 {[%clk 0:02:55]}  Be7 {[%clk 0:02:30]} 7. Nf3 {[%clk 0:02:51]}  O-O {[%clk 0:02:27]} 8. g3 {[%clk 0:02:50]}  Re8 {[%clk 0:02:17]} 9. Bg2 {[%clk 0:02:48]}  c5 {[%clk 0:02:12]} 10. O-O {[%clk 0:02:33]}  d6 {[%clk 0:02:10]} 11. Nd2 {[%clk 0:02:30]}  Bf8 {[%clk 0:02:08]} 12. Nc4 {[%clk 0:02:27]}  Nbd7 {[%clk 0:02:05]} 13. Re1 {[%clk 0:01:53]}  a6 {[%clk 0:02:04]} 14. a4 {[%clk 0:01:52]}  Ne5 {[%clk 0:02:01]} 15. Ne3 {[%clk 0:01:33]}  Qd7 {[%clk 0:01:54]} 16. Qb3 {[%clk 0:01:25]}  Rab8 {[%clk 0:01:31]} 17. f4 {[%clk 0:01:00]}  Neg4 {[%clk 0:01:24]} 18. Nc4 {[%clk 0:00:58]}  b5 {[%clk 0:01:17]} 19. axb5 {[%clk 0:00:53]}  axb5 {[%clk 0:01:16]} 20. Qxb5 {[%clk 0:00:43]}  Qxb5 {[%clk 0:01:07]} 21. Nxb5 {[%clk 0:00:44]}  Bxd5 {[%clk 0:00:57]} 22. Bxd5 {[%clk 0:00:20]}  Nxd5 {[%clk 0:00:54]} 23. Nbxd6 {[%clk 0:00:20]}  Bxd6 {[%clk 0:00:39]} 24. Nxd6 {[%clk 0:00:21]}  Red8 {[%clk 0:00:33]} 25. Nc4 {[%clk 0:00:17]}  Nb4 {[%clk 0:00:31]} 26. Ra5 {[%clk 0:00:09]}  Nc2 {[%clk 0:00:24]} 27. Rf1 {[%clk 0:00:09]}  Rdc8 {[%clk 0:00:15]} 28. e4 {[%clk 0:00:07]}  Rb3 {[%clk 0:00:14]} 29. Kg2 {[%clk 0:00:06]}  Nce3+ {[%clk 0:00:13]} 30. Nxe3 {[%clk 0:00:06]}  Nxe3+ {[%clk 0:00:14]} 31. Bxe3 {[%clk 0:00:06]}  Rxe3 {[%clk 0:00:14]} 32. Rc1 {[%clk 0:00:04]}  Rxe4 {[%clk 0:00:13]} 33. Rcxc5 {[%clk 0:00:05]}  Rce8 {[%clk 0:00:04]} 34. Re5 {[%clk 0:00:03]}  R4xe5 {[%clk 0:00:03]} 35. Rxe5 {[%clk 0:00:02]}  Rxe5 {[%clk 0:00:03]} 36. fxe5 {[%clk 0:00:03]}  Kf8 {[%clk 0:00:04]} 37. Kf3 {[%clk 0:00:03]}  Ke7 {[%clk 0:00:05]} 38. Ke4 {[%clk 0:00:04]}  Ke6 {[%clk 0:00:06]} 39. g4 {[%clk 0:00:04]}  h6 {[%clk 0:00:04]} 40. b4 {[%clk 0:00:04]}  g6 {[%clk 0:00:05]} 41. b5 {[%clk 0:00:04]}  f6 {[%clk 0:00:05]} 42. b6 {[%clk 0:00:04]}  f5+ {[%clk 0:00:03]} 43. gxf5+ {[%clk 0:00:04]}  gxf5+ {[%clk 0:00:03]} 44. Kf4 {[%clk 0:00:05]}  Kd7 {[%clk 0:00:04]} 45. e6+ {[%clk 0:00:05]} 1-0


[Site "https://www.chess.com"]

[Event "Titled Tuesday Blitz September 27 Early 2022"]
[White "Reyes, Narquingden"]
[Black "Narayanan, Srinath"]
[WhiteFideId "5217334"]
[BlackFideId "5018420"]
[WhiteElo "2625"]
[BlackElo "2802"]
[Result "1-0"]
[Round "05"]
[TimeControl "180+1"]
[Date "2022.09.27"]
[WhiteClock "0:00:02"]
[BlackClock "0:00:03"]

1. d4 {[%clk 0:02:54]}  f5 {[%clk 0:02:58]} 2. Nf3 {[%clk 0:02:53]}  Nf6 {[%clk 0:02:58]} 3. Bf4 {[%clk 0:02:54]}  g6 {[%clk 0:02:58]} 4. c4 {[%clk 0:02:52]}  Bg7 {[%clk 0:02:58]} 5. Nc3 {[%clk 0:02:52]}  O-O {[%clk 0:02:58]} 6. e3 {[%clk 0:02:52]}  d6 {[%clk 0:02:57]} 7. h3 {[%clk 0:02:50]}  Nbd7 {[%clk 0:02:55]} 8. Be2 {[%clk 0:02:49]}  b6 {[%clk 0:02:51]} 9. O-O {[%clk 0:02:49]}  Bb7 {[%clk 0:02:51]} 10. Rc1 {[%clk 0:02:49]}  Ne4 {[%clk 0:02:52]} 11. Nxe4 {[%clk 0:02:48]}  fxe4 {[%clk 0:02:53]} 12. Nd2 {[%clk 0:02:45]}  e5 {[%clk 0:02:50]} 13. dxe5 {[%clk 0:02:43]}  Nxe5 {[%clk 0:02:51]} 14. Qc2 {[%clk 0:02:39]}  Nd3 {[%clk 0:02:42]} 15. Bxd3 {[%clk 0:02:26]}  exd3 {[%clk 0:02:43]} 16. Qb3 {[%clk 0:02:25]}  Kh8 {[%clk 0:02:43]} 17. Rb1 {[%clk 0:02:23]}  d5 {[%clk 0:01:56]} 18. Qxd3 {[%clk 0:01:56]}  dxc4 {[%clk 0:01:56]} 19. Qxd8 {[%clk 0:01:56]}  Rfxd8 {[%clk 0:01:57]} 20. Nxc4 {[%clk 0:01:57]}  Be4 {[%clk 0:01:56]} 21. Rbd1 {[%clk 0:01:39]}  Bd3 {[%clk 0:01:54]} 22. Bxc7 {[%clk 0:01:38]}  Bxf1 {[%clk 0:01:52]} 23. Bxd8 {[%clk 0:01:05]}  Bxc4 {[%clk 0:01:48]} 24. b3 {[%clk 0:01:05]}  Be6 {[%clk 0:01:38]} 25. e4 {[%clk 0:01:03]}  Rc8 {[%clk 0:01:35]} 26. f4 {[%clk 0:01:00]}  Kg8 {[%clk 0:01:34]} 27. g4 {[%clk 0:00:59]}  Rc2 {[%clk 0:01:33]} 28. f5 {[%clk 0:00:55]}  gxf5 {[%clk 0:01:29]} 29. gxf5 {[%clk 0:00:54]}  Bf7 {[%clk 0:01:25]} 30. f6 {[%clk 0:00:40]}  Bh6 {[%clk 0:01:22]} 31. Be7 {[%clk 0:00:35]}  Bd2 {[%clk 0:01:05]} 32. e5 {[%clk 0:00:27]}  Be6 {[%clk 0:00:41]} 33. Kf2 {[%clk 0:00:07]}  Bb4+ {[%clk 0:00:31]} 34. Ke3 {[%clk 0:00:06]}  Bxe7 {[%clk 0:00:27]} 35. Rg1+ {[%clk 0:00:05]}  Kf8 {[%clk 0:00:22]} 36. fxe7+ {[%clk 0:00:05]}  Kxe7 {[%clk 0:00:22]} 37. Rg7+ {[%clk 0:00:06]}  Bf7 {[%clk 0:00:22]} 38. Rxh7 {[%clk 0:00:07]}  Rxa2 {[%clk 0:00:22]} 39. h4 {[%clk 0:00:07]}  Ra3 {[%clk 0:00:20]} 40. h5 {[%clk 0:00:07]}  Rxb3+ {[%clk 0:00:21]} 41. Kf4 {[%clk 0:00:07]}  Rh3 {[%clk 0:00:19]} 42. h6 {[%clk 0:00:08]}  a5 {[%clk 0:00:19]} 43. Kg5 {[%clk 0:00:07]}  a4 {[%clk 0:00:18]} 44. Rh8 {[%clk 0:00:08]}  a3 {[%clk 0:00:16]} 45. Ra8 {[%clk 0:00:08]}  a2 {[%clk 0:00:15]} 46. Ra7+ {[%clk 0:00:07]}  Ke8 {[%clk 0:00:10]} 47. Ra8+ {[%clk 0:00:06]}  Kd7 {[%clk 0:00:10]} 48. Ra7+ {[%clk 0:00:07]}  Kc6 {[%clk 0:00:10]} 49. Kf6 {[%clk 0:00:06]}  Bd5 {[%clk 0:00:09]} 50. Kg7 {[%clk 0:00:07]}  Rg3+ {[%clk 0:00:09]} 51. Kf6 {[%clk 0:00:06]}  Rf3+ {[%clk 0:00:08]} 52. Kg7 {[%clk 0:00:07]}  Rf7+ {[%clk 0:00:08]} 53. Rxf7 {[%clk 0:00:06]}  a1=Q {[%clk 0:00:09]} 54. Rf6+ {[%clk 0:00:06]}  Kc5 {[%clk 0:00:08]} 55. h7 {[%clk 0:00:07]}  Qg1+ {[%clk 0:00:07]} 56. Rg6 {[%clk 0:00:07]}  Qe3 {[%clk 0:00:05]} 57. h8=Q {[%clk 0:00:07]}  Qxe5+ {[%clk 0:00:05]} 58. Kh7 {[%clk 0:00:07]}  Qh5+ {[%clk 0:00:04]} 59. Kg7 {[%clk 0:00:07]}  Qe5+ {[%clk 0:00:05]} 60. Kh7 {[%clk 0:00:08]}  Qf5 {[%clk 0:00:04]} 61. Kg7 {[%clk 0:00:06]}  Be4 {[%clk 0:00:04]} 62. Rf6 {[%clk 0:00:03]}  Qd7+ {[%clk 0:00:05]} 63. Rf7 {[%clk 0:00:03]}  Qg4+ {[%clk 0:00:05]} 64. Kf8 {[%clk 0:00:03]}  Qc8+ {[%clk 0:00:05]} 65. Kg7 {[%clk 0:00:03]}  Qe6 {[%clk 0:00:05]} 66. Qh5+ {[%clk 0:00:02]}  Bd5 {[%clk 0:00:04]} 67. Rf5 {[%clk 0:00:02]}  b5 {[%clk 0:00:04]} 68. Re5 {[%clk 0:00:02]}  Qd7+ {[%clk 0:00:03]} 69. Kf6 {[%clk 0:00:02]} 1-0


[Site "https://www.chess.com"]